[Event "Israel National League 2024"]
[Site "Israel"]
[Date "2024.01.19"]
[Round "3.35"]
[White "Raznikov, Danny"]
[Black "Soffer, Ram"]
[Result "1/2-1/2"]
[ECO "E04"]
[WhiteElo "2476"]
[BlackElo "2431"]
[Annotator "RC"]
[PlyCount "85"]
[EventDate "2024.01.07"]
[EventType "team-tourn"]
[EventCountry "ISR"]
[SourceTitle "playchess.com"]
[Source "ChessBase"]
[SourceQuality "1"]
[TimeControl "40/5400+30:1800+30"]

1. d4 {[%emt 0:01:18]} Nf6 {[%emt 0:03:51]} 2. c4 {[%emt 0:00:20]} e6 {[%emt 0:00:21]} 3. Nf3 {[%emt 0:01:11]} d5 {[%emt 0:00:15]} 4. Nc3 {[%emt 0:00:24]} c6 {[%emt 0:00:47]} 5. g3 {[%emt 0:01:41]} dxc4 {[%emt 0:08:33]} 6. Bg2 {[%emt 0:00:26]} b5 {[%emt 0:00:43]} 7. O-O {[%emt 0:02:56]} Qb6 {[%emt 0:03:35]} 8. e4 {[%emt 0:13:37]} Bb4 {[%emt 0:09:28]} 9. e5 {[%emt 0:09:25]} Nd5 {[%emt 0:01:14]} 10. Ng5 {[%emt 0:04:58]} h6 {[%emt 1:06:43]} 11. Nge4 Nd7 12. Qg4 g6 13. Bd2 Be7 14. a4 h5 15. Qe2 b4 16. Nd6+ Bxd6 17. Nxd5 cxd5 18. a5 Qc6 19. exd6 Qxd6 20. Qe1 Rb8 21. Bf4 e5 22. dxe5 Qe6 23. Bxd5 Qxd5 24. Rd1 Qc6 25. Rd6 Qf3 26. e6 O-O 27. exf7+ Kh7 28. Qb1 Qg4 29. Rfd1 Rxf7 30. f3 Qf5 31. Qxf5 gxf5 32. Rxd7 Rxd7 33. Rxd7+ Bxd7 34. Bxb8 c3 35. Be5 c2 36. Bf4 b3 37. Kf2 Kg6 38. Ke2 Bc6 39. a6 Bb5+ 40. Kd2 Bxa6 41. Kc3 Be2 42. Kxb3 Bd1 {[%emt 0:00:00]} 43. Kc3 1/2-1/2

[Event "Israel National League 2024"]
[Site "Israel"]
[Date "2024.01.19"]
[Round "3.36"]
[White "Krayz, Alexander"]
[Black "Mindlin, Alon"]
[Result "0-1"]
[ECO "B22"]
[WhiteElo "2327"]
[BlackElo "2438"]
[Annotator "RC"]
[PlyCount "52"]
[EventDate "2024.01.07"]
[EventType "team-tourn"]
[EventCountry "ISR"]
[SourceTitle "playchess.com"]
[Source "ChessBase"]
[SourceQuality "1"]
[TimeControl "40/5400+30:1800+30"]

1. e4 {[%emt 0:05:26]} c5 {[%emt 0:00:04]} 2. Nf3 {[%emt 0:00:16]} e6 {[%emt 0:00:05]} 3. c3 {[%emt 0:00:03]} d5 {[%emt 0:00:04]} 4. exd5 {[%emt 0:00:05]} exd5 {[%emt 0:00:04]} 5. d4 {[%emt 0:00:06]} Nc6 {[%emt 0:00:04]} 6. Be3 {[%emt 0:00:07]} c4 {[%emt 0:00:10]} 7. b3 {[%emt 0:00:11]} cxb3 {[%emt 0:00:07]} 8. axb3 {[%emt 0:00:04]} Bd6 {[%emt 0:00:08]} 9. Bd3 {[%emt 0:00:11]} Nf6 {[%emt 0:00:06]} 10. h3 {[%emt 0:04:19]} O-O {[%emt 0:01:09]} 11. Nbd2 {[%emt 0:00:28]} Re8 {[%emt 0:03:57]} 12. O-O {[%emt 0:02:48]} h6 {[%emt 0:06:09]} 13. Qb1 {[%emt 0:03:04]} Bd7 {[%emt 0:03:52]} 14. b4 {[%emt 0:02:06]} a6 {[%emt 0:08:54]} 15. Rc1 {[%emt 0:05:46]} Qc8 {[%emt 0:09:36]} 16. b5 {[%emt 0:15:47]} axb5 {[%emt 0:03:20]} 17. Rxa8 {[%emt 0:01:41]} Qxa8 {[%emt 0:00:05]} 18. Bxb5 {[%emt 0:00:07]} Qa3 {[%emt 0:04:39]} 19. Bd3 {[%emt 0:04:14]} b5 {[%emt 0:11:29]} 20. Nb3 {[%emt 0:11:10]} b4 {[%emt 0:08:25]} 21. Qc2 {[%emt 0:06:16]} bxc3 {[%emt 0:01:54]} 22. Qxc3 {[%emt 0:02:05]} Rb8 {[%emt 0:15:40]} 23. Nc5 {[%emt 0:03:24]} Bxc5 {[%emt 0:00:11]} 24. dxc5 {[%emt 0:00:10]} Rb3 {[%emt 0:00:08]} 25. Qe1 {[%emt 0:08:12]} Rxd3 {[%emt 0:00:07]} 26. Ra1 {[%emt 0:00:03]} Qc3 {[%emt 0:01:42]} 0-1

[Event "Israel National League 2024"]
[Site "Israel"]
[Date "2024.02.09"]
[Round "5.1"]
[White "Emanuel, Yahav"]
[Black "Sivuk, Vitaly"]
[Result "0-1"]
[ECO "E67"]
[WhiteElo "2333"]
[BlackElo "2502"]
[Annotator "TA"]
[PlyCount "106"]
[EventDate "2024.01.07"]
[EventType "team-tourn"]
[EventCountry "ISR"]
[SourceTitle "playchess.com"]
[Source "ChessBase"]
[SourceQuality "1"]
[TimeControl "40/5400+30:1800+30"]

{[%evp 16,106,57,26,44,27,14,22,22,9,0,-12,0,-16,-9,-14,0,-32,-7,-50,-27,-23,-24,-25,-8,-14,-19,-33,0,-29,-29,-20,0,-12,-12,-31,-28,-31,-32,-32,-53,-38,-35,-28,-27,-57,-31,-48,-33,-29,-33,-48,-41,-49,-18,-21,-25,-19,0,0,0,-10,-3,-14,-14,-8,-8,-8,0,-3,-3,-4,0,-142,-150,-555,-537,-558,-558,-495,-450,-3461,-5065,-5065,-4801,-4801,-4334,-1427,-1289,-29984,-29985,-29983,-29984]} 1. d4 {[%emt 0:00:36]} Nf6 {[%emt 0:00:18]} 2. Nf3 {[%emt 0:00:11]} g6 {[%emt 0:00:16]} 3. c4 {[%emt 0:00:42]} Bg7 {[%emt 0:00:11]} 4. g3 {[%emt 0:00:35]} O-O {[%emt 0:01:39]} 5. Bg2 {[%emt 0:00:25]} d6 {[%emt 0:00:10]} 6. O-O {[%emt 0:02:20]} Nbd7 {[%emt 0:01:05]} 7. Nc3 {[%emt 0:02:01]} e5 {[%emt 0:00:14]} 8. e4 {[%emt 0:01:12]} Re8 {[%emt 0:00:19]} 9. h3 {[%emt 0:04:07]} b6 {[%emt 0:00:25]} 10. d5 {[%emt 0:05:21]} Nc5 {[%emt 0:00:31]} 11. Ne1 {[%emt 0:06:37]} a5 {[%emt 1:30:52] The position is equal.} 12. b3 {[%emt 0:03:22]} Nfd7 {[%emt 0:00:00]} 13. Qc2 {[%emt 0:11:17]} Rf8 {[%emt 0:00:00]} 14. Bb2 {[%emt 0:10:23]} f5 {[%emt 0:00:00]} 15. exf5 {[%emt 0:00:12]} gxf5 {[%emt 0:00:00]} 16. f4 {[%emt 0:08:09]} e4 {[%emt 0:00:00]} 17. Nd1 {[%emt 0:08:25]} (17. a3 $5) 17... Bxb2 {[%emt 0:00:00]} 18. Qxb2 {[%emt 0:00:32]} Qf6 {[%emt 0:00:00]} (18... Kf7 {looks sharper.} 19. Ne3 Nf6 20. Kh2 Rg8) 19. Rb1 {[%emt 0:03:06]} Qg6 {[%emt 0:00:00]} 20. Kh2 {[%emt 0:05:00]} Nf6 {[%emt 0:00:00]} 21. Ne3 {[%emt 0:03:03]} Kf7 {[%emt 0:00:00] aiming for ...Rg8.} 22. Qf2 {[%emt 0:03:32]} (22. Rg1 $5) 22... Rg8 {[%emt 0:00:00] White must now prevent ...Nh5.} 23. Rg1 $1 {[%emt 0:01:22]} h5 {[%emt 0:00:00][%cal Oh5h4]} (23... Ng4+ $5 24. Nxg4 (24. hxg4 Qh6+ 25. Bh3 fxg4 $15) 24... fxg4 $17) 24. Bf1 {[%emt 0:00:39] [#]} h4 $1 {[%emt 0:00:00]} 25. Be2 {[%emt 0:07:57]} (25. gxh4 Qxg1+) 25... hxg3+ {[%emt 0:00:00]} 26. Rxg3 {[%emt 0:00:02]} Qxg3+ {[%emt 0:00:00]} 27. Qxg3 {[%emt 0:00:01]} Rxg3 {[%emt 0:00:00]} 28. Kxg3 {[%emt 0:00:01]} Bd7 {[%emt 0:00:00]} 29. Rd1 {[%emt 0:03:16]} Rg8+ {[%emt 0:00:00]} 30. Kf2 {[%emt 0:00:20]} Rh8 {[%emt 0:00:00]} 31. Kg3 {[%emt 0:08:33]} Nh5+ {[%emt 0:00:00]} 32. Bxh5+ {[%emt 0:00:03]} Rxh5 {[%emt 0:00:00]} 33. Rd2 {[%emt 0:00:35]} Kf6 {[%emt 0:00:00]} 34. Rg2 {[%emt 0:01:09]} b5 {[%emt 0:00:00]} 35. cxb5 $1 {[%emt 0:00:31]} Bxb5 {[%emt 0:00:00]} 36. N1c2 $1 {[%emt 0:01:56]} Nd3 {[%emt 0:00:00]} 37. Nd4 {[%emt 0:00:04]} Bd7 {[%emt 0:00:00]} 38. Rc2 {[%emt 0:00:22]} Rh7 {[%emt 0:00:00]} 39. Rxc7 {[%emt 0:01:25][%cal Od4e6] Ne6! is the strong threat.} Rg7+ {[%emt 0:00:00]} 40. Kh2 {[%emt 0:00:22]} Nxf4 {[%emt 0:00:00] ...Rh7 would now be deadly.} 41. Ndxf5 $1 {[%emt 0:13:24] [#] Excellent horsemanship.} Nxd5 $1 {[%emt 0:00:00]} 42. Ra7 $132 {[%emt 0:13:01][%mdl 2048] White is not holding back} (42. Nxd5+ Kxf5) 42... Rh7 {[%emt 0:00:00] Hoping for ...Nxe3.} 43. Nxd5+ {[%emt 0:02:06]} Kxf5 $11 {[%emt 0:00:00][%mdl 4096] Endgame. KRB-KRN} 44. Kg3 {[%emt 0:00:09]} (44. Kg1 $1 $11 Rf7 45. Rxa5) 44... Ke5 $1 $17 {[%emt 0:00:00][%csl LRd5,LRh3]} 45. Nb6 {[%emt 0:01:08] This costs White the game.} (45. Rxa5 $17 Be6 (45... Bxh3 $2 {loses.} 46. Nf4+ Kd4 47. Nxh3 $18) (45... Rxh3+ 46. Kg2 $11) 46. Nf4+ d5 47. Ng6+ Kf5 48. Nh4+ Kg5 49. Ra6) 45... Rxh3+ $19 {[%emt 0:00:00]} 46. Kg2 {[%emt 0:00:02]} Be6 {[%emt 0:00:00]} 47. Nc4+ {[%emt 0:01:14]} Kf4 {[%emt 0:00:00]} 48. Nxd6 {[%emt 0:02:44]} (48. Ra8 $142 Rg3+ 49. Kf1) 48... Rg3+ {[%emt 0:00:00]} 49. Kf1 {[%emt 0:00:45]} e3 {[%emt 0:00:00] ( -> ...Kf3)} 50. Nc4 {[%emt 0:00:34]} Bh3+ {[%emt 0:00:00]} 51. Ke2 {[%emt 0:00:08]} Bg4+ {[%emt 0:00:00]} 52. Kf1 {[%emt 0:00:49]} e2+ {[%emt 0:00:00]} 53. Kf2 {[%emt 0:00:01] [#]} Rg2+ $3 {[%emt 0:00:00][%mdl 512] Weighted Error Value: White=0.46/Black=0.06 (flawless) .  Loses game:     	White=1     	---        Mistake:       	White=2     	---        Inaccurate:     	White=4     	Black=3      OK:         	White=8     	Black=18     Best:        	White=7     	Black=5      Strong:       	White=4     	---        Brilliant:      	---       	Black=1} 0-1

[Event "Israel National League 2024"]
[Site "Israel"]
[Date "2024.02.09"]
[Round "5.2"]
[White "Tzidkiya, Yeshaayahu"]
[Black "Tifferet, Shakked"]
[Result "1-0"]
[ECO "B43"]
[WhiteElo "2448"]
[BlackElo "2334"]
[Annotator "TA"]
[PlyCount "61"]
[EventDate "2024.01.07"]
[EventType "team-tourn"]
[EventCountry "ISR"]
[SourceTitle "playchess.com"]
[Source "ChessBase"]
[SourceQuality "1"]
[TimeControl "40/5400+30:1800+30"]

{[%evp 16,61,-7,-18,-14,-8,-11,-31,-10,-42,-53,-55,-50,-57,3,2,5,1,6,6,5,7,154,150,264,262,282,278,266,265,316,306,510,500,663,675,744,744,29992,29993,29993,29994,29994,29994,29994,29995,29995,29996]} 1. e4 {[%emt 0:00:03]} c5 {[%emt 0:00:12]} 2. Nf3 {[%emt 0:00:04]} e6 {[%emt 0:00:09]} 3. d4 {[%emt 0:00:11]} cxd4 {[%emt 0:00:05]} 4. Nxd4 {[%emt 0:00:02]} a6 {[%emt 0:00:08]} 5. Nc3 {[%emt 0:00:47]} b5 {[%emt 0:00:12]} 6. g3 {[%emt 0:05:45]} Nf6 {[%emt 0:00:11]} 7. Bg2 {[%emt 0:00:07]} Bb7 {[%emt 0:00:06]} 8. O-O {[%emt 0:00:04]} b4 {[%emt 0:00:15]} 9. Na4 {[%emt 0:00:04]} Bxe4 {[%emt 0:00:25]} 10. Bxe4 {[%emt 0:00:04]} Nxe4 {[%emt 0:00:06]} 11. c3 {[%emt 0:05:04]} bxc3 {[%emt 0:01:53] Black is slightly better.} 12. Re1 {[%emt 0:00:12]} Nf6 {[%emt 0:00:23]} 13. Qf3 {[%emt 0:30:56]} d5 $1 {[%emt 0:03:35]} 14. bxc3 {[%emt 0:07:15]} Qa5 {[%emt 0:21:10] [#]} (14... Nbd7 $15 15. Bg5 Rc8 16. Bxf6 Nxf6) 15. Bg5 $1 $11 {[%emt 0:10:41]} Nbd7 {[%emt 0:02:44] [#]} (15... Qxa4 16. Bxf6 Ra7 (16... gxf6 $2 17. Nxe6 fxe6 18. Rxe6+ Kd8 19. Qxd5+ Kc7 20. Qxa8 $18) 17. Rab1 $18) 16. Qf5 $1 $36 {[%emt 0:15:02][%mdl 2048] White has the initiative.} Ba3 $1 {[%emt 0:26:14] [#]} (16... Qxa4 $2 17. Nxe6 Be7 (17... fxe6 $2 18. Qxe6+ Kd8 19. Qe8+ Kc7 20. Qxa8 $18) 18. Nxg7+ (18. Nc7+ Kf8 $18) 18... Kf8 19. Rxe7 Kxe7 20. Bxf6+ (20. Qxd5 Kf8 $11) (20. Re1+ Kd6 $18) 20... Kd6 (20... Nxf6 $2 21. Re1+ Kd6 22. Qxf6+ Kc5 23. Nf5 $18) 21. Bd4 $18) 17. Nxe6 $1 {[%emt 0:06:55]} fxe6 {[%emt 0:00:15]} 18. Rxe6+ {[%emt 0:00:04]} (18. Qxe6+ $2 Kf8 19. Bxf6 Nxf6 $19) 18... Kf7 {[%emt 0:07:13]} (18... Be7 $11 {remains equal.} 19. Bxf6 Nxf6) 19. Nb6 $1 $16 {[%emt 0:05:25] White has more active pieces.} Qxb6 {[%emt 0:13:05]} (19... Nxb6 20. Rxf6+ (20. Bxf6 g6 $18) 20... Ke7 21. Rxb6+ Ke8 22. Re1+) (19... Qxc3 $16 20. Nxd7 (20. Nxd5 $2 Qxa1+ 21. Kg2 Rae8 $19) 20... Qxa1+ 21. Kg2 Bb2) 20. Rxb6 $18 {[%emt 0:00:04]} Nxb6 {[%emt 0:00:03]} 21. Bxf6 {[%emt 0:01:10]} gxf6 {[%emt 0:00:03] [#]} 22. Re1 {[%emt 0:00:10]} (22. Qh5+ Ke6 $14) 22... Rab8 {[%emt 0:03:35]} 23. c4 {[%emt 0:09:19]} ({Stronger than} 23. Qh5+ Kg7 $11) 23... dxc4 $2 {[%emt 0:07:24]} (23... Rhe8 24. Rxe8 (24. Qxh7+ Kf8 $16) 24... Rxe8 25. Qxh7+ (25. cxd5 Re1+ 26. Kg2 Re5 $18) 25... Kf8 26. Qh6+ Kf7 27. Qh5+ Ke7 28. cxd5 Bc5) 24. Re3 {[%emt 0:01:29]} c3 {[%emt 0:01:39]} 25. Qe6+ {[%emt 0:00:23]} Kg7 {[%emt 0:00:18] ...c2 is the strong threat.} 26. Rxc3 {[%emt 0:00:07] Rc7+ would kill now.} Bb2 {[%emt 0:11:30]} 27. Rc7+ {[%emt 0:00:13] White mates.} Kh6 {[%emt 0:00:17]} 28. Qh3+ {[%emt 0:00:12]} Kg6 {[%emt 0:00:07]} 29. Qg4+ {[%emt 0:00:07]} Kh6 {[%emt 0:00:03]} 30. Qf4+ {[%emt 0:01:46]} Kg6 {[%emt 0:00:05]} 31. g4 {[%emt 0:00:15] Weighted Error Value: White=0.01 (flawless) /Black=0.88.  Mistake:       	---       	Black=4      Inaccurate:     	White=1     	Black=1      OK:         	White=8     	Black=2      Best:        	White=1     	---        Strong:       	White=1     	Black=2      Brilliant:      	White=1     	---} 1-0

[Event "Israel National League 2024"]
[Site "Israel"]
[Date "2024.02.09"]
[Round "5.3"]
[White "Lev, Ronen"]
[Black "Aizenberg, Benny"]
[Result "1/2-1/2"]
[ECO "A09"]
[WhiteElo "2341"]
[BlackElo "2396"]
[Annotator "TA"]
[PlyCount "91"]
[EventDate "2024.01.07"]
[EventType "team-tourn"]
[EventCountry "ISR"]
[SourceTitle "playchess.com"]
[Source "ChessBase"]
[SourceQuality "1"]
[TimeControl "40/5400+30:1800+30"]

{[%evp 16,91,0,-19,-8,-12,-14,-38,0,-16,0,0,12,28,10,-12,0,0,0,0,0,-7,-8,-41,-27,-32,-35,-77,-7,-4,-8,-8,-14,-4,-5,-9,-8,-2,-2,-6,-5,-15,-12,-13,-7,-7,-3,-24,-8,-14,-8,-8,0,-8,-5,-4,8,2,2,-8,0,0,1,0,0,0,0,0,0,0,0,0,0,0,30,0,0,0]} 1. Nf3 {[%emt 0:00:30]} c5 {[%emt 0:00:07]} 2. g3 {[%emt 0:00:10]} g6 {[%emt 0:00:14]} 3. Bg2 {[%emt 0:00:05]} Bg7 {[%emt 0:00:07]} 4. O-O {[%emt 0:00:15]} d5 {[%emt 0:00:18]} 5. c4 {[%emt 0:00:22]} d4 {[%emt 0:01:43]} 6. d3 {[%emt 0:00:53]} Nf6 {[%emt 0:05:02]} 7. b4 {[%emt 0:06:19]} cxb4 {[%emt 0:00:18]} 8. a3 {[%emt 0:00:15]} bxa3 {[%emt 0:04:53]} 9. Bxa3 {[%emt 0:00:54]} O-O {[%emt 0:02:15]} 10. Nbd2 {[%emt 0:00:13]} Nc6 {[%emt 0:01:21]} 11. Qc2 {[%emt 0:00:22]} Nd7 {[%emt 0:09:42] Black is slightly better.} 12. Rfb1 {[%emt 0:01:44]} b6 {[%emt 0:03:57]} 13. c5 {[%emt 0:04:23]} Nxc5 {[%emt 0:08:06]} 14. Bxc5 {[%emt 0:00:52]} bxc5 {[%emt 0:02:06]} 15. Nb3 {[%emt 0:26:11][%cal Of3d2]} Bg4 {[%emt 0:10:50]} 16. Nxc5 {[%emt 0:00:36]} Rc8 {[%emt 0:00:29]} 17. Qa4 {[%emt 0:03:02]} Bxf3 {[%emt 0:11:11]} 18. exf3 {[%emt 0:02:01]} Ne5 {[%emt 0:05:01]} 19. Rc1 {[%emt 0:10:40][%cal Of3f4]} Qd6 {[%emt 0:04:12]} 20. Qxa7 {[%emt 0:03:02]} Rc7 {[%emt 0:01:52]} 21. Nb7 {[%emt 0:05:26]} Qd7 {[%emt 0:01:34]} (21... Rxc1+ $17 22. Rxc1 Qd7) 22. Rxc7 $11 {[%emt 0:01:33]} Qxc7 {[%emt 0:00:06]} 23. Nc5 {[%emt 0:00:28]} Rc8 {[%emt 0:02:27]} 24. Qxc7 {[%emt 0:02:01]} Rxc7 {[%emt 0:00:02]} 25. Ra5 {[%emt 0:02:25]} g5 {[%emt 0:01:43]} 26. h4 {[%emt 0:28:48]} gxh4 {[%emt 0:02:29]} 27. f4 {[%emt 0:00:00]} Ng6 {[%emt 0:00:15]} 28. Be4 {[%emt 0:00:00]} hxg3 {[%emt 0:02:13]} 29. fxg3 {[%emt 0:00:00]} Nf8 {[%emt 0:03:37]} 30. Kg2 {[%emt 0:00:00]} Bf6 {[%emt 0:01:19]} 31. g4 {[%emt 0:00:00]} h6 {[%emt 0:01:25]} 32. Kf3 {[%emt 0:00:00]} Rc8 {[%emt 0:00:11]} 33. Bb7 {[%emt 0:00:00]} Rc7 {[%emt 0:00:57]} 34. Bd5 {[%emt 0:00:00]} Kg7 {[%emt 0:03:55]} 35. Bc4 {[%emt 0:00:00]} Rc8 {[%emt 0:02:25]} 36. Ne4 {[%emt 0:00:00] Black should prevent Nxf6.} Bh4 {[%emt 0:06:42]} 37. Rd5 {[%emt 0:00:00]} e6 {[%emt 0:00:45]} 38. Rxd4 {[%emt 0:00:27]} Be7 {[%emt 0:00:05]} 39. f5 {[%emt 0:01:13]} Rb8 {[%emt 0:00:49]} 40. fxe6 {[%emt 0:00:19]} fxe6 {[%emt 0:00:06]} 41. Ng3 {[%emt 0:30:29]} Nh7 {[%emt 0:09:41]} 42. Rd7 {[%emt 0:00:00]} Ng5+ {[%emt 0:00:13]} 43. Ke3 {[%emt 0:00:00]} Kf8 {[%emt 0:00:04] [#] ...Ke8 is the strong threat.} 44. Ne4 {[%emt 0:00:00]} Rd8 {[%emt 0:02:09]} 45. Rxd8+ {[%emt 0:00:00]} Bxd8 {[%emt 0:00:04]} 46. Nxg5 {[%emt 0:00:00] Weighted Error Value: White=0.08 (flawless) /Black=0.09 (flawless) .  Mistake:       	---       	Black=1      Inaccurate:     	White=3     	Black=2      OK:         	White=13    	Black=13     Best:        	White=1     	---} 1/2-1/2

[Event "Israel National League 2024"]
[Site "Israel"]
[Date "2024.02.09"]
[Round "5.4"]
[White "Baron, Tal"]
[Black "Ben-Menachem, Itzhak"]
[Result "1/2-1/2"]
[ECO "C67"]
[WhiteElo "2490"]
[BlackElo "2266"]
[Annotator "TA"]
[PlyCount "65"]
[EventDate "2024.01.07"]
[EventType "team-tourn"]
[EventCountry "ISR"]
[SourceTitle "playchess.com"]
[Source "ChessBase"]
[SourceQuality "1"]
[TimeControl "40/5400+30:1800+30"]

{[%evp 18,65,14,11,14,17,12,20,20,-22,-12,-20,0,9,1,12,24,11,8,13,8,9,9,0,0,-8,-6,-25,-14,-37,0,0,0,0,0,-37,-43,-32,0,0,0,-199,0,0,0,-153,0,0,0,-168]} 1. e4 {[%emt 0:03:58]} e5 {[%emt 0:00:33]} 2. Nf3 {[%emt 0:00:12]} Nc6 {[%emt 0:00:06]} 3. Bb5 {[%emt 0:00:08]} Nf6 {[%emt 0:00:07]} 4. O-O {[%emt 0:00:40][%cal Bh1f1,Bf1e1,Be1e5][%mdl 32]} Nxe4 {[%emt 0:00:06]} 5. Re1 {[%emt 0:00:09]} Nd6 {[%emt 0:00:15]} 6. Nxe5 {[%emt 0:00:02]} Be7 {[%emt 0:00:08]} 7. Bf1 {[%emt 0:00:26]} Nxe5 {[%emt 0:00:07]} 8. Rxe5 {[%emt 0:00:01]} O-O {[%emt 0:00:08]} 9. d4 {[%emt 0:00:15]} Bf6 {[%emt 0:00:12]} 10. Re1 {[%emt 0:00:09]} Re8 {[%emt 0:00:10]} 11. Bf4 {[%emt 0:00:17]} Rxe1 {[%emt 0:02:34]} 12. Qxe1 {[%emt 1:30:13]} Ne8 {[%emt 0:02:49]} 13. Nc3 {[%emt 0:00:00]} Bxd4 {[%emt 0:05:46]} 14. Nd5 {[%emt 0:00:00] [#] Black must now prevent Qe4.} c6 {[%emt 0:03:44]} 15. Ne7+ {[%emt 0:00:00]} Kf8 {[%emt 0:01:25]} 16. Nxc8 {[%emt 0:00:00][%cal Oa1d1] Hoping for Rd1!} Qf6 $1 {[%emt 0:01:15]} (16... Qxc8 $2 {is the wrong capture.} 17. Qe4 $18) 17. Bg3 {[%emt 0:00:00] Qb4+ would now be deadly.} Rxc8 {[%emt 0:00:52][%cal Ba8c8,Bc8c7,Bc7e7,Be7e1][%mdl 32]} 18. Qb4+ {[%emt 0:00:00]} d6 $1 {[%emt 0:03:26]} 19. Qxb7 {[%emt 0:00:00]} Rc7 {[%emt 0:01:44]} 20. Qa8 {[%emt 0:00:00]} Bxb2 {[%emt 0:20:46]} 21. Re1 $132 {[%emt 0:00:00][%csl Ga8][%cal Re1e8,Ba1e1,Be1e3,Be3f3][%mdl 2080] [#] White puts up resistance} Be5 {[%emt 0:01:31]} 22. Re3 {[%emt 0:00:00][%cal Of2f4]} g5 {[%emt 0:18:15]} 23. c4 {[%emt 0:00:00][%cal Oc4c5]} Re7 {[%emt 0:17:57] And now ...Bxg3 would win.} 24. Rf3 {[%emt 0:00:00]} Bf4 {[%emt 0:00:01]} 25. Bxf4 {[%emt 0:00:00]} gxf4 {[%emt 0:00:13]} 26. Qxc6 {[%emt 0:00:00]} (26. g3 $5) 26... Re1 {[%emt 0:04:06] aiming for ...Qa1.} 27. c5 {[%emt 0:00:00]} Qa1 {[%emt 0:01:45]} 28. Qa6 {[%emt 0:00:00]} Nc7 {[%emt 0:01:21]} 29. Qxd6+ {[%emt 0:00:00]} (29. Qc8+ $1 $11 {and White stays safe.} Ne8 30. Qa6) 29... Ke8 {[%emt 0:06:31]} ({Better is} 29... Kg7 $19 {[%csl Ga1][%cal Re1f1]} 30. Qd3 Ne6) 30. Qc6+ $17 {[%emt 0:00:00]} Kf8 {[%emt 0:00:42][%csl Ga1][%cal Re1f1]} 31. Qd6+ {[%emt 0:00:00]} Ke8 $2 {[%emt 0:00:09]} (31... Kg7 $17 {[%csl Ga1][%cal Re1f1]} 32. Qd3 Ne6) 32. Qc6+ $11 {[%emt 0:00:00]} Kf8 {[%emt 0:00:13][%csl Ga1][%cal Re1f1]} 33. Qd6+ $2 {[%emt 0:00:00] Weighted Error Value: White=0.17 (very precise) /Black=0.25 (precise) .  Loses game:     	White=2     	---        Mistake:       	---       	Black=2      Inaccurate:     	White=2     	Black=3      OK:         	White=9     	Black=8      Best:        	White=3     	Black=4      Strong:       	---       	Black=2} (33. Qh6+ $11 {and White has nothing to worry.} Kg8 34. Qg5+ Kh8 35. Qd8+ Kg7 36. Qg5+ (36. Qd3 $2 Ne6 $19) 36... Kh8 37. Qd8+ Kg7 38. Qg5+ (38. Qd3 $2 Ne6 $19) 38... Kh8) 1/2-1/2